bitfinex-derivatives/quotes_SOLF0:USTF0_20250415
["timestamp","ask_amount","ask_price","bid_price","bid_amount"]
[1744722982983,48.14822629,132.61,132.52,28.14]
[1744722983179,7.5441,132.57,132.52,28.14]
[1744722983585,20.00822629,132.6,132.52,28.14]
[1744722983787,20.00822629,132.6,132.56,7.544]
[1744722983984,0.05700037,132.59,132.55,28.14]
[1744722984388,0.05700037,132.59,132.56,0.0503157]
[1744722984889,0.05700037,132.59,132.56,6.1597157]
[1744722985190,7.5411,132.62,132.59,7.5423]
[1744722985787,48.14822629,132.64,132.58,28.14]
[1744722986090,0.05610671,132.62,132.6,0.05396637]
[1744722988194,7.59710671,132.62,132.6,0.05396637]
[1744722990192,0.05610671,132.62,132.6,0.05396637]
[1744722990690,0.05610671,132.62,132.6,7.59596637]
[1744722992795,0.05610671,132.62,132.6,0.05396637]
[1744722994498,0.05610671,132.62,132.6,7.59566637]
[1744722995298,0.05610671,132.62,132.61,7.5415]
[1744722995498,0.05610671,132.62,132.6,0.05396637]
[1744722996898,0.05610671,132.62,132.6,7.59566637]
[1744723000096,32.08644803,132.61,132.5,576.27881368]
[1744723000295,32.08644803,132.61,132.53,28.14]
[1744723000803,7.5434,132.58,132.54,7.5451]
[1744723001002,7.5434,132.58,132.53,28.14]
[1744723001301,0.05521696,132.57,132.54,0.05367523]
[1744723001502,0.05521696,132.57,132.55,7.5444]
[1744723002603,0.05521696,132.57,132.54,7.59887523]
[1744723002903,0.05521696,132.57,132.54,0.05367523]
[1744723004102,7.5443,132.56,132.54,0.05367523]
[1744723004703,7.5449,132.55,132.54,0.05367523]
[1744723006195,7.5445,132.56,132.54,0.05367523]
[1744723006906,7.59911696,132.57,132.54,0.05367523]
[1744723007297,7.59911696,132.57,132.54,7.59887523]
[1744723008005,0.05521696,132.57,132.55,7.5448]
[1744723012407,0.05521696,132.57,132.54,35.73887523]
[1744723014008,0.05521696,132.57,132.55,7.5449]
[1744723016113,0.05521696,132.57,132.54,35.73887523]
[1744723019419,20.06963847,132.55,132.54,0.05367523]
[1744723019608,20.06963847,132.55,132.5,572.33236565]
[1744723019812,20.06963847,132.53,132.5,29.45236565]
[1744723020016,20.06963847,132.53,132.5,36.99976565]
[1744723020720,27.66373573,132.53,132.5,37.05585543]
[1744723020917,0.04799726,132.53,132.5,29.50845543]
[1744723021113,20.06963847,132.59,132.51,26.30943847]
[1744723021419,20.06963847,132.59,132.53,7.5455]
[1744723021717,20.06963847,132.59,132.53,28.14]
[1744723022020,7.5442,132.57,132.54,7.5451]
[1744723022213,7.59586897,132.57,132.55,0.04977878]
[1744723023518,7.5443,132.56,132.55,0.04977878]
[1744723024218,27.66520744,132.57,132.55,0.04977878]
[1744723024718,20.12130744,132.57,132.55,7.59467878]
[1744723027018,27.66530744,132.57,132.55,0.04977878]
[1744723027210,27.66530744,132.57,132.5,29.45236565]
[1744723027211,20.12130744,132.57,132.5,29.45236565]
[1744723027417,20.06963847,132.55,132.5,29.45236565]
[1744723027721,27.61593847,132.53,132.5,36.99986565]
[1744723027915,20.06963847,132.55,132.5,29.45236565]
[1744723028116,27.61483847,132.55,132.52,7.5465]
[1744723028318,20.12038426,132.55,132.52,0.05336478]
[1744723029522,27.66548426,132.55,132.52,7.59966478]
[1744723030117,20.12038426,132.55,132.52,7.59966478]
[1744723030823,27.66548426,132.55,132.52,7.59966478]
[1744723032121,0.05074579,132.55,132.54,7.5454]
[1744723033824,11.7077,132.6,132.56,7.5439]
[1744723034029,7.5424,132.6,132.56,7.5439]
[1744723034324,7.5427,132.59,132.56,7.5439]
[1744723034829,7.59693085,132.59,132.56,7.59620652]
[1744723035431,0.05423085,132.59,132.56,7.59620652]
[1744723035630,20.12386932,132.59,132.56,0.05230652]
[1744723035828,20.06963847,132.57,132.56,0.05230652]
[1744723036030,7.5454,132.55,132.5,29.45236565]
[1744723036230,27.61503847,132.55,132.52,7.5465]
[1744723037030,27.66537013,132.55,132.52,7.60073568]
[1744723037431,27.66537013,132.55,132.52,0.05423568]
[1744723037432,20.11997013,132.55,132.52,0.05423568]
[1744723037932,7.5457,132.54,132.52,0.05423568]
[1744723038240,20.06963847,132.53,132.5,1.31236565]
[1744723038425,20.06963847,132.51,132.5,1.31236565]
[1744723038620,27.61683847,132.51,132.5,1.31236565]
[1744723039734,48.20963847,132.51,132.43,543.1]
[1744723039930,20.06963847,132.48,132.43,543.1]
[1744723040129,7.5497,132.47,132.43,543.1]
[1744723040730,7.5508,132.45,132.44,0.05131128]
[1744723043635,27.67337904,132.46,132.44,0.05131128]
[1744723043830,0.05354057,132.46,132.44,0.05131128]
[1744723045335,7.60374057,132.46,132.44,0.05131128]
[1744723045839,0.05354057,132.46,132.44,0.05131128]
[1744723046638,20.12317904,132.46,132.44,0.05131128]
[1744723047040,7.5506,132.45,132.44,0.05131128]
[1744723047440,0.05354057,132.46,132.44,0.05131128]
[1744723048038,7.60364057,132.46,132.44,0.05131128]
[1744723049645,0.05354057,132.46,132.44,0.05131128]
[1744723052147,7.60364057,132.46,132.44,0.05131128]
[1744723054747,0.05354057,132.46,132.44,0.05131128]
[1744723059053,0.05354057,132.46,132.44,7.60241128]
[1744723059454,0.05354057,132.46,132.44,0.05131128]
[1744723060656,0.05354057,132.46,132.45,7.5506]
[1744723063557,0.05354057,132.46,132.44,0.05131128]
[1744723064056,7.60374057,132.46,132.44,0.05131128]
[1744723064755,7.5506,132.45,132.44,0.05131128]
[1744723067756,0.05354057,132.46,132.44,0.05131128]
[1744723069263,0.05354057,132.46,132.44,7.60221128]
[1744723070359,0.05354057,132.46,132.44,0.05131128]
[1744723070859,7.60354057,132.46,132.44,0.05131128]
[1744723071360,0.05354057,132.46,132.44,0.05131128]
[1744723071559,0.05354057,132.46,132.44,7.60211128]
[1744723073353,0.05354057,132.46,132.45,7.5506]
[1744723076066,0.05354057,132.46,132.44,0.05131128]
[1744723076667,0.05354057,132.46,132.45,7.5506]
[1744723080064,0.05354057,132.46,132.44,0.05131128]
[1744723080869,0.05354057,132.46,132.45,7.5506]
[1744723081070,0.05354057,132.46,132.44,0.05131128]
[1744723082265,30.2614,132.51,132.45,28.14]
[1744723082565,7.5477,132.5,132.47,7.5489]
[1744723083369,7.60109319,132.5,132.47,7.60199698]
[1744723085771,0.05339319,132.5,132.48,7.5488]
[1744723086372,7.60119319,132.5,132.47,7.60219698]
[1744723089879,7.5484,132.49,132.47,0.05309698]
[1744723090067,0.05339319,132.5,132.47,0.05309698]
[1744723090272,20.06963847,132.48,132.43,2.1305]
[1744723090467,20.06963847,132.46,132.42,28.14]
[1744723090675,20.06963847,132.46,132.39,28.14]
[1744723090975,7.5514,132.44,132.41,7.5526]
[1744723091272,20.06963847,132.46,132.39,28.14]
[1744723091481,20.11874191,132.44,132.41,0.05197827]
[1744723091775,7.552,132.43,132.41,0.05352304]
[1744723093177,7.552,132.43,132.41,7.60642304]
[1744723094775,7.60050344,132.44,132.42,7.5523]
[1744723094971,0.04910344,132.44,132.42,7.5523]
[1744723095377,0.04910344,132.44,132.43,7.5517]
[1744723095979,48.20963847,132.52,132.42,48.20963847]
[1744723096173,48.20963847,132.52,132.44,20.06963847]
[1744723096373,7.5481,132.5,132.45,28.14]
[1744723096671,7.5481,132.5,132.47,7.5491]
[1744723096974,7.60361071,132.5,132.47,7.60328227]
[1744723097174,20.12514918,132.5,132.47,0.05418227]
[1744723097680,0.05551071,132.5,132.48,7.5486]
[1744723098274,0.05551071,132.5,132.47,0.05418227]
[1744723098275,0.05551071,132.5,132.47,7.60328227]
[1744723099179,7.60341071,132.5,132.47,7.60328227]
[1744723102281,7.60341071,132.5,132.47,0.05418227]
[1744723102980,7.5489,132.48,132.47,0.05418227]
[1744723103278,27.61853847,132.48,132.47,0.05418227]
[1744723103981,0.05551071,132.5,132.47,0.05418227]
[1744723105080,7.5483,132.49,132.47,0.05418227]
[1744723105280,0.05551071,132.5,132.47,0.05418227]
[1744723105780,7.5489,132.48,132.47,0.05418227]
[1744723105981,0.05551071,132.5,132.47,0.05418227]
[1744723106383,7.5489,132.48,132.47,0.05418227]
[1744723111086,7.5486,132.49,132.47,0.05418227]
[1744723111287,20.4086682,132.49,132.47,0.05418227]
[1744723112687,7.5489,132.48,132.47,0.05418227]
[1744723113789,20.4089682,132.48,132.47,0.05418227]
[1744723116386,20.4086682,132.49,132.47,0.05418227]
[1744723116582,0.05551071,132.5,132.47,7.60338227]
[1744723116583,12.91557891,132.5,132.47,7.60338227]
[1744723117083,20.46357891,132.5,132.47,7.60338227]
[1744723117389,7.60351071,132.5,132.47,7.60338227]
[1744723118194,0.05551071,132.5,132.48,7.5488]
[1744723118389,0.05551071,132.5,132.47,0.05418227]
[1744723118792,7.60351071,132.5,132.47,0.05418227]
[1744723118994,0.05551071,132.5,132.47,0.05418227]
[1744723119892,7.5486,132.49,132.47,0.05418227]
[1744723120989,0.05551071,132.5,132.47,0.05418227]
[1744723121189,7.5489,132.48,132.47,0.05418227]
[1744723121390,27.64054448,132.48,132.47,0.05418227]
[1744723121794,7.5489,132.48,132.47,0.05418227]
[1744723127199,27.64054448,132.48,132.47,0.05418227]
[1744723134503,35.6687,132.49,132.47,0.05418227]
[1744723134710,0.05551071,132.5,132.47,0.05418227]
[1744723135003,20.14715519,132.5,132.47,0.05418227]
[1744723135308,27.64054448,132.48,132.47,0.05418227]
[1744723135508,20.09164448,132.48,132.42,28.12]
[1744723135804,20.09164448,132.48,132.41,359.0]
[1744723135805,7.5512,132.44,132.41,7.5525]
[1744723136607,7.5512,132.44,132.41,7.60400236]
[1744723136808,7.60247272,132.44,132.41,7.60400236]
[1744723137109,20.47248548,132.44,132.41,7.60400236]
[1744723137912,20.47248548,132.44,132.42,7.5522]
[1744723138108,7.60247272,132.44,132.42,7.5522]
[1744723138606,0.05127272,132.44,132.43,7.5517]
[1744723138812,0.05127272,132.44,132.43,20.42171276]
[1744723139013,0.05127272,132.44,132.43,7.5517]
[1744723140816,7.60247272,132.44,132.42,28.14]
[1744723141010,0.05127272,132.44,132.42,28.14]
[1744723141209,12.92128548,132.44,132.42,28.14]
[1744723142015,12.87001276,132.43,132.41,0.05150236]
[1744723142214,0.05127272,132.44,132.35,28.14]
[1744723142215,41.01001276,132.42,132.35,28.14]
[1744723142417,12.87001276,132.38,132.35,28.14]
[1744723142605,20.42471276,132.38,132.35,35.696]
[1744723143010,7.5547,132.38,132.35,35.696]
[1744723143213,12.87001276,132.36,132.33,359.0]
[1744723143409,0.05612226,132.38,132.35,12.92689856]
[1744723143615,7.5537,132.4,132.36,20.42541276]
[1744723143818,0.04828312,132.38,132.37,12.87001276]
[1744723144020,0.04828312,132.38,132.36,20.42541276]
[1744723145206,0.04828312,132.38,132.35,41.06799487]
[1744723146018,0.04828312,132.38,132.35,35.75408211]
[1744723146217,12.91829588,132.38,132.35,35.75408211]
[1744723146619,12.91829588,132.38,132.36,7.5556]
[1744723146919,0.04828312,132.38,132.35,28.19798211]
[1744723147118,12.91829588,132.38,132.35,28.19798211]
[1744723147418,12.87001276,132.37,132.35,28.19798211]
[1744723147720,20.42551276,132.37,132.35,0.05798211]
[1744723148021,12.87001276,132.36,132.35,0.05798211]
[1744723148317,20.42571276,132.36,132.35,0.05798211]
[1744723150423,12.87001276,132.36,132.35,0.05798211]
[1744723150622,20.42541276,132.37,132.35,0.05798211]
[1744723151021,20.42571276,132.36,132.35,0.05798211]
[1744723152315,12.87001276,132.36,132.35,0.05798211]
[1744723152522,0.04828312,132.38,132.35,0.05798211]
[1744723152723,12.91829588,132.38,132.35,0.05798211]
[1744723153223,12.87001276,132.37,132.35,0.05798211]
[1744723153521,20.42541276,132.37,132.35,0.05798211]
[1744723153719,12.87001276,132.37,132.35,0.05798211]
[1744723154214,12.91829588,132.38,132.35,7.61388211]
[1744723154625,20.47309588,132.38,132.35,7.61388211]
[1744723154821,12.91829588,132.38,132.35,0.05798211]
[1744723155023,12.87001276,132.37,132.35,0.05798211]
[1744723155625,12.87001276,132.37,132.35,7.61428211]
[1744723157432,20.42521276,132.37,132.35,0.05798211]
[1744723158433,20.47319588,132.38,132.35,7.61418211]
[1744723158928,0.04828312,132.38,132.35,12.92799487]
[1744723159132,41.01001276,132.43,132.37,12.87001276]
[1744723159431,41.01001276,132.43,132.38,12.87001276]
[1744723159632,7.5525,132.42,132.39,7.5537]
[1744723159830,12.87001276,132.45,132.41,12.87001276]
[1744723160033,41.01001276,132.46,132.42,12.87001276]
[1744723160334,0.05274017,132.45,132.43,7.60645471]
[1744723160634,0.05274017,132.45,132.43,12.92506747]
[1744723160935,0.05274017,132.45,132.43,20.47646747]
[1744723161532,12.92275293,132.45,132.43,0.05505471]
[1744723161931,0.05274017,132.45,132.44,7.5511]
[1744723162238,0.05274017,132.45,132.43,0.05505471]
[1744723163634,0.05274017,132.45,132.43,7.60645471]
[1744723167041,12.92275293,132.45,132.43,0.05505471]
[1744723167241,12.87001276,132.44,132.43,0.05505471]
[1744723167644,20.42111276,132.44,132.43,0.05505471]
[1744723167845,0.05274017,132.45,132.43,0.05505471]
[1744723168646,0.05274017,132.45,132.43,7.60675471]
[1744723169846,0.05274017,132.45,132.43,12.92506747]
[1744723170247,0.05274017,132.45,132.43,20.47646747]
[1744723172249,0.05274017,132.45,132.44,20.42111276]
[1744723173450,0.05274017,132.45,132.44,7.5511]
[1744723174047,0.05274017,132.45,132.43,20.47646747]
[1744723174249,0.05274017,132.45,132.44,12.87001276]
[1744723174645,0.05274017,132.45,132.44,20.42111276]
[1744723175144,0.05274017,132.45,132.44,12.87001276]
[1744723176149,0.05274017,132.45,132.43,0.05505471]
[1744723176550,0.05274017,132.45,132.43,12.92506747]
[1744723176750,0.05274017,132.45,132.44,12.87001276]
[1744723176950,0.05274017,132.45,132.43,20.47656747]
[1744723178448,0.05274017,132.45,132.43,7.60655471]
[1744723179757,12.92275293,132.45,132.43,0.05505471]
[1744723180255,7.5511,132.44,132.43,0.05505471]
[1744723181253,20.42111276,132.44,132.43,0.05505471]
[1744723183255,7.5511,132.44,132.43,0.05505471]
[1744723183457,0.05274017,132.45,132.43,12.92506747]
[1744723183753,0.05274017,132.45,132.44,12.87001276]
[1744723184561,0.05274017,132.45,132.44,20.42111276]
[1744723188365,0.05274017,132.45,132.43,20.47646747]
[1744723188670,0.05274017,132.45,132.43,7.60645471]
[1744723190366,7.60344017,132.45,132.43,7.60645471]
[1744723190564,12.92275293,132.45,132.43,0.05505471]
[1744723190966,7.60364017,132.45,132.43,7.60665471]
[1744723191162,0.05274017,132.45,132.43,7.60665471]
[1744723191565,7.60334017,132.45,132.43,7.60665471]
[1744723191865,7.60334017,132.45,132.43,0.05505471]
[1744723192465,7.60334017,132.45,132.43,7.60655471]
[1744723192662,0.05274017,132.45,132.43,0.05505471]
[1744723192967,0.05274017,132.45,132.44,20.42111276]
[1744723193168,7.5486,132.49,132.44,40.99001276]
[1744723193369,7.5486,132.49,132.46,12.87001276]
[1744723193669,7.5486,132.49,132.46,20.41951276]
[1744723193969,7.5486,132.49,132.46,12.87001276]
[1744723196169,20.41941276,132.47,132.46,0.05665981]
[1744723198075,12.87001276,132.47,132.46,0.05665981]
[1744723198970,20.41941276,132.47,132.46,0.05665981]
[1744723201076,7.5494,132.47,132.46,0.05665981]
[1744723201578,12.87001276,132.48,132.46,0.05665981]
[1744723201579,7.5491,132.48,132.46,0.05665981]
[1744723201768,28.17021877,132.49,132.46,0.05665981]
[1744723202172,35.71891877,132.49,132.46,7.60625981]
[1744723202476,12.87001276,132.48,132.46,0.05665981]
[1744723202673,12.87001276,132.47,132.46,0.05665981]
[1744723203882,20.41941276,132.47,132.46,0.05665981]
[1744723204380,7.5494,132.47,132.46,0.05665981]
[1744723204682,20.41921276,132.48,132.46,0.05665981]
[1744723204976,0.05021877,132.49,132.46,0.05665981]
[1744723205175,12.92023153,132.49,132.46,0.05665981]
[1744723205375,7.5489,132.48,132.46,0.05665981]
[1744723205882,20.46883153,132.49,132.46,7.60665981]
[1744723206179,0.05021877,132.49,132.46,0.05665981]
[1744723206483,0.05021877,132.49,132.47,12.87001276]
[1744723206676,0.05021877,132.49,132.46,12.92667257]
[1744723207084,0.05021877,132.49,132.47,7.5489]
[1744723207279,0.05021877,132.49,132.46,12.92667257]
[1744723207583,0.05021877,132.49,132.47,7.5489]
[1744723207784,0.05021877,132.49,132.48,12.87001276]
[1744723208175,0.05021877,132.49,132.48,20.41891276]
[1744723211186,12.87001276,132.55,132.53,7.5459]
[1744723211379,12.87001276,132.56,132.53,7.5459]
[1744723211884,20.41471276,132.56,132.53,7.5459]
[1744723212285,20.46713037,132.56,132.53,7.6002946]
[1744723212881,12.92243037,132.56,132.53,0.0543946]
[1744723213093,0.05241761,132.56,132.55,7.5449]
[1744723214183,0.05241761,132.56,132.54,7.5451]
[1744723214781,12.92243037,132.56,132.53,0.0543946]
[1744723215086,12.87001276,132.55,132.53,0.0543946]
[1744723215282,20.07682909,132.55,132.53,0.0543946]
[1744723215476,24.04682909,132.55,132.48,1.9832]
[1744723215677,20.07682909,132.53,132.48,1.9832]
[1744723215888,7.5472,132.51,132.48,9.532]
[1744723216193,7.5472,132.51,132.48,7.5488]
[1744723216490,7.59830265,132.51,132.48,7.60196957]
[1744723216680,0.05110265,132.51,132.49,7.5482]
[1744723216883,0.05110265,132.51,132.48,0.05316957]
[1744723217391,0.05110265,132.51,132.49,7.5478]
[1744723217787,28.08,132.57,132.48,0.05316957]
[1744723217984,7.5455,132.54,132.51,7.5468]
[1744723218283,7.5455,132.54,132.49,2.0915]
[1744723218284,20.07682909,132.54,132.49,2.0915]
[1744723218689,20.07682909,132.54,132.45,548.0]
[1744723218690,20.07682909,132.52,132.45,24.14132909]
[1744723218889,0.04940548,132.5,132.47,0.05763527]
[1744723219388,0.04940548,132.5,132.48,7.5485]
[1744723220291,0.04940548,132.5,132.49,7.5483]
[1744723221491,2.0122,132.56,132.49,20.07682909]
[1744723221688,2.0122,132.56,132.49,22.13822909]
[1744723221997,7.5459,132.54,132.49,22.13822909]
[1744723222190,22.08902909,132.56,132.49,22.13822909]
[1744723222496,20.07682909,132.54,132.48,28.08]
[1744723222694,20.07682909,132.52,132.51,0.05034647]
[1744723223393,27.62342909,132.52,132.51,0.05034647]
[1744723224494,7.549,132.48,132.45,28.08]
[1744723224887,20.07682909,132.51,132.4,2.0743]
[1744723225099,20.07682909,132.46,132.39,359.0]
[1744723225495,7.5516,132.44,132.4,7.5534]
[1744723225795,7.60832596,132.44,132.41,0.05301374]
[1744723227299,7.60832596,132.44,132.41,7.60571374]
[1744723227796,0.05672596,132.44,132.43,7.5517]
[1744723228003,28.1,132.51,132.43,20.07682909]
[1744723229003,0.0488864,132.48,132.45,0.05103253]
[1744723229199,7.5977864,132.48,132.45,7.60133253]
[1744723230197,0.0488864,132.48,132.45,0.05103253]
[1744723230796,7.5979864,132.48,132.45,7.60153253]
[1744723230996,20.12571549,132.48,132.45,0.05103253]
[1744723231200,48.22571549,132.48,132.45,0.05103253]
[1744723231395,7.55,132.46,132.45,0.05103253]
[1744723233700,27.62682909,132.46,132.45,0.05103253]
[1744723233901,7.5521,132.43,132.39,359.0]
[1744723234600,7.5521,132.43,132.4,7.5531]
[1744723234800,7.5521,132.43,132.4,7.60831572]
[1744723235107,0.04897026,132.43,132.4,0.05521572]
[1744723235507,7.5529,132.41,132.4,0.05521572]
[1744723237412,0.04897026,132.43,132.4,0.05521572]
[1744723238311,20.07682909,132.42,132.4,0.05521572]
[1744723238811,28.14897026,132.43,132.4,0.05521572]
[1744723239012,0.04897026,132.43,132.4,0.05521572]
[1744723239816,7.60077026,132.43,132.4,7.60831572]
[1744723240016,28.14897026,132.43,132.4,0.05521572]
[1744723241211,0.04897026,132.43,132.41,7.5528]
[1744723242417,0.04897026,132.43,132.4,7.60831572]
[1744723242614,0.04897026,132.43,132.4,0.05521572]
[1744723243015,0.04897026,132.43,132.42,7.5523]
[1744723246817,28.1,132.49,132.43,20.07682909]
[1744723247822,0.04983268,132.47,132.45,7.60415301]
[1744723248021,0.04983268,132.47,132.45,0.05385301]
[1744723248320,7.59953268,132.47,132.45,0.05385301]
[1744723248915,7.55,132.46,132.45,0.05385301]
[1744723249323,0.04983268,132.47,132.45,0.05385301]
[1744723249818,0.04983268,132.47,132.45,20.1306821]
[1744723250124,0.04983268,132.47,132.46,7.55]
[1744723253930,0.04983268,132.47,132.45,9.58615301]
[1744723254130,0.04983268,132.47,132.45,0.05385301]
[1744723254627,7.59953268,132.47,132.45,0.05385301]
[1744723255128,0.04983268,132.47,132.45,7.60405301]
[1744723255327,0.04983268,132.47,132.45,0.05385301]
[1744723256030,0.04983268,132.47,132.45,7.60405301]
[1744723257231,0.04983268,132.47,132.46,7.55]
[1744723257432,7.55,132.46,132.45,0.05385301]
[1744723257631,7.55,132.46,132.41,32.2556]
[1744723257632,20.07682909,132.46,132.41,28.1]
[1744723257934,20.07682909,132.42,132.38,28.1]
[1744723258133,7.5529,132.41,132.36,3.975]
[1744723258322,20.07682909,132.42,132.36,3.975]
[1744723258522,27.62952909,132.42,132.36,3.975]
[1744723258820,27.62952909,132.42,132.38,0.05125203]
[1744723258821,0.05372942,132.4,132.38,0.05125203]
[1744723260037,0.05372942,132.4,132.38,28.15125203]
[1744723260229,48.17682909,132.46,132.38,28.15125203]
[1744723260429,48.17682909,132.46,132.4,7.553]
[1744723260732,48.17682909,132.46,132.38,28.1]
[1744723261032,7.5516,132.44,132.4,7.553]
[1744723261233,28.1,132.46,132.38,28.1]
[1744723261429,0.05019992,132.43,132.41,0.05808818]
[1744723261724,7.60229992,132.43,132.41,0.05808818]
[1744723262135,0.05019992,132.43,132.41,0.05808818]
[1744723262629,0.05019992,132.43,132.41,7.61078818]
[1744723262833,0.05019992,132.43,132.41,0.05808818]
[1744723263334,0.05019992,132.43,132.41,28.15808818]
[1744723263928,0.05019992,132.43,132.42,7.5523]
[1744723264128,0.05019992,132.43,132.42,9.5813]
[1744723264634,28.1,132.49,132.44,7.551]
[1744723264931,7.5492,132.48,132.42,6.0377]
[1744723265234,7.5492,132.48,132.45,7.5502]
[1744723265436,28.1,132.52,132.44,60.2756275]
[1744723265631,0.0494459,132.49,132.47,0.05555883]
[1744723265829,0.0494459,132.49,132.47,28.15555883]
[1744723266035,0.0494459,132.49,132.48,7.5485]
[1744723268627,0.0494459,132.49,132.47,35.70465883]
[1744723268833,7.5489,132.48,132.47,0.05555883]
[1744723269338,7.5980459,132.49,132.47,0.05555883]
[1744723269537,0.0494459,132.49,132.47,0.05555883]
[1744723270039,7.5489,132.48,132.47,0.05555883]
[1744723270234,0.0494459,132.49,132.47,0.05555883]
[1744723271229,7.5980459,132.49,132.47,0.05555883]
[1744723271641,0.0494459,132.49,132.47,7.60465883]
[1744723274533,0.0494459,132.49,132.48,7.5489]
[1744723276543,0.0494459,132.49,132.47,35.68465883]
[1744723279641,0.0494459,132.49,132.47,28.13555883]
[1744723279948,7.5489,132.48,132.47,0.05555883]
[1744723281249,7.5511,132.45,132.41,35.6324]
[1744723282247,0.047796,132.44,132.42,0.0509867]
[1744723283649,7.599196,132.44,132.42,0.0509867]
[1744723283952,0.047796,132.44,132.42,0.0509867]
[1744723284252,0.047796,132.44,132.42,7.6032867]
[1744723284653,0.047796,132.44,132.42,0.0509867]
[1744723285254,7.599496,132.44,132.42,0.0509867]
[1744723286855,7.5517,132.43,132.42,0.0509867]
[1744723287958,7.599296,132.44,132.42,0.0509867]
[1744723289956,0.047796,132.44,132.42,0.0509867]
[1744723290458,28.08,132.52,132.42,32.22721058]
[1744723290649,7.5486,132.49,132.46,7.5495]
[1744723291266,7.5494,132.47,132.45,28.08]
[1744723291559,0.05156494,132.47,132.45,28.13198844]
[1744723292061,0.05156494,132.47,132.45,35.68208844]
[1744723293266,7.60146494,132.47,132.45,28.13198844]
[1744723293462,0.05156494,132.47,132.45,0.05198844]
[1744723295160,0.05156494,132.47,132.45,7.60228844]
[1744723296565,7.60106494,132.47,132.45,7.60228844]
[1744723296766,7.60106494,132.47,132.45,0.05198844]
[1744723297066,0.05156494,132.47,132.45,0.05198844]
[1744723297266,0.05156494,132.47,132.45,7.60248844]
[1744723298068,0.05156494,132.47,132.45,0.05198844]
[1744723298467,7.60126494,132.47,132.45,0.05198844]
[1744723298962,0.05156494,132.47,132.45,7.60248844]
[1744723300168,7.60106494,132.47,132.45,7.60248844]
[1744723300565,0.05156494,132.47,132.46,7.55]
[1744723301770,0.05156494,132.47,132.45,7.60218844]
[1744723302071,0.05156494,132.47,132.45,0.05198844]
[1744723302370,0.05156494,132.47,132.46,7.55]
[1744723305668,32.17622388,132.52,132.45,0.05198844]
[1744723305669,28.08,132.52,132.48,7.5485]
[1744723305867,28.08,132.52,132.45,28.08]
[1744723306369,28.08,132.52,132.46,7.5498]
[1744723306570,28.08,132.52,132.45,28.08]
[1744723306772,7.5492,132.48,132.47,0.0499153]
[1744723307671,0.05240161,132.5,132.47,0.0499153]
[1744723308171,7.5489,132.48,132.47,0.0499153]
[1744723308677,0.05240161,132.5,132.47,0.0499153]
[1744723308973,7.5486,132.49,132.47,0.0499153]
[1744723309179,0.05240161,132.5,132.47,0.0499153]
[1744723309471,7.5489,132.48,132.47,0.0499153]
[1744723310177,0.05240161,132.5,132.47,0.0499153]
[1744723310677,7.5489,132.48,132.47,0.0499153]
[1744723320586,7.5485,132.49,132.47,7.5993153]
[1744723321890,7.60040161,132.5,132.47,7.5993153]
[1744723322392,0.05240161,132.5,132.48,7.5488]
[1744723323192,7.60050161,132.5,132.48,7.5488]
[1744723323887,0.05240161,132.5,132.48,7.5488]
[1744723324591,0.05240161,132.5,132.47,7.5990153]
[1744723324789,7.5483,132.49,132.47,7.5990153]
[1744723324988,0.05240161,132.5,132.47,7.5990153]
[1744723325286,0.05240161,132.5,132.47,20.14420546]
[1744723325491,563.63429016,132.57,132.49,20.09429016]
[1744723325693,7.5446,132.56,132.53,7.5458]
[1744723325896,209.0931606,132.58,132.5,30.1479]
[1744723325897,209.0931606,132.58,132.51,20.09429016]
[1744723326592,0.05508259,132.56,132.53,0.05383825]
[1744723326786,7.545,132.55,132.53,0.05383825]
[1744723326983,0.05508259,132.56,132.53,0.05383825]
[1744723327392,7.59968259,132.56,132.53,7.59933825]
[1744723327992,7.59968259,132.56,132.53,0.05383825]
[1744723328993,7.59968259,132.56,132.53,7.59983825]
[1744723330202,0.05508259,132.56,132.53,0.05383825]
[1744723330696,7.5454,132.54,132.53,0.05383825]
[1744723331889,7.54,132.54,132.45,1.9836]
[1744723332086,20.09429016,132.49,132.45,1.9836]
[1744723332288,20.09429016,132.49,132.45,7.5503]
[1744723332494,20.09429016,132.49,132.43,28.08]
[1744723332992,0.051731,132.47,132.45,7.60430271]
[1744723333193,0.051731,132.47,132.45,0.05420271]
[1744723333491,0.051731,132.47,132.46,7.55]
[1744723334298,0.051731,132.47,132.45,0.05420271]
[1744723334697,7.55,132.46,132.45,0.05420271]
[1744723335498,20.14602116,132.47,132.4,35.6132]
[1744723335705,20.09429016,132.45,132.4,28.06]
[1744723335997,20.09429016,132.47,132.4,28.06]
[1744723336196,20.09429016,132.47,132.42,7.5522]
[1744723336700,7.5509,132.45,132.43,0.05436729]